bitfinex/quotes_BTCUSD_20260125
["timestamp","ask_amount","ask_price","bid_price","bid_amount"]
[1769366544565,1.05134249,87349.0,87334.0,0.00603261]
[1769366544993,0.33590274,87350.0,87335.0,1.07270945]
[1769366545273,1.38733583,87355.0,87336.0,1.07859976]
[1769366545496,1.38733583,87355.0,87336.0,1.07270945]
[1769366545649,9.06e-05,87355.0,87341.0,0.12797367]
[1769366545850,9.06e-05,87355.0,87344.0,1.07270945]
[1769366546050,9.06e-05,87355.0,87346.0,0.3425306]
[1769366546252,1.05134249,87361.0,87341.0,0.12797367]
[1769366546451,0.01144636,87364.0,87341.0,0.12797367]
[1769366546452,1.05134249,87359.0,87342.0,0.00114623]
[1769366546894,0.33590274,87356.0,87335.0,1.07270945]
[1769366547095,1.05134249,87353.0,87341.0,0.12797367]
[1769366548097,1.38724523,87353.0,87341.0,0.12797367]
[1769366548493,1.05134249,87352.0,87341.0,0.12797367]
[1769366551598,0.17588,87361.0,87334.0,0.04594216]
[1769366551599,0.01,87341.0,87334.0,0.04594216]
[1769366552250,1.05134249,87344.0,87334.0,0.04594216]
[1769366552632,0.33590274,87346.0,87334.0,0.04594216]
[1769366552784,0.17588,87354.0,87337.0,1.07270945]
[1769366552948,1.22722249,87354.0,87338.0,0.3425306]
[1769366553573,0.33640431,87353.0,87338.0,0.3425306]
[1769366553780,0.34785224,87352.0,87334.0,0.04594216]
[1769366553985,1.3877468,87351.0,87334.0,0.04594216]
[1769366555291,1.39919486,87351.0,87334.0,0.04594216]
[1769366555708,1.3877468,87351.0,87334.0,0.04594216]
[1769366556342,0.33640431,87351.0,87334.0,0.00014216]
[1769366556557,0.17588,87354.0,87337.0,1.0645028]
[1769366556733,0.17588,87354.0,87336.0,0.35780378]
[1769366556941,1.05134249,87353.0,87336.0,0.35780378]
[1769366557144,0.17588,87354.0,87334.0,1.06464496]
[1769366557145,0.17588,87354.0,87343.0,1.14668781]
[1769366557344,0.17588,87354.0,87343.0,1.13897998]
[1769366557545,0.18960711,87359.0,87343.0,1.13897998]
[1769366557748,0.01144727,87357.0,87343.0,1.49678376]
[1769366557923,0.01372737,87357.0,87343.0,1.49678376]
[1769366558311,0.11450279,87356.0,87343.0,1.49678376]
[1769366558519,0.11450279,87355.0,87343.0,1.49678376]
[1769366558704,0.0022801,87357.0,87343.0,1.49678376]
[1769366558914,0.11450933,87356.0,87343.0,1.49678376]
[1769366559143,0.11450933,87355.0,87343.0,1.49678376]
[1769366559388,0.0022801,87358.0,87343.0,1.49678376]
[1769366559578,0.11450924,87357.0,87343.0,1.49678376]
[1769366559779,0.11450924,87356.0,87343.0,0.07447718]
[1769366559984,0.11450924,87355.0,87343.0,0.07447718]
[1769366560711,0.17588,87359.0,87343.0,0.07447718]
[1769366560924,0.11679194,87358.0,87343.0,0.07447718]
[1769366561067,0.11679194,87358.0,87343.0,1.13897998]
[1769366561068,0.11451184,87357.0,87343.0,1.13897998]
[1769366561270,0.0022801,87358.0,87343.0,1.13897998]
[1769366561271,0.11451184,87356.0,87343.0,1.49678376]
[1769366561476,0.01372724,87358.0,87343.0,1.49678376]
[1769366561750,0.12596231,87357.0,87343.0,1.49678376]
[1769366561949,0.17588,87357.0,87345.0,0.35780378]
[1769366562166,0.17588,87357.0,87348.0,1.00718207]
[1769366562337,0.17588,87357.0,87349.0,1.36498651]
[1769366563949,0.18732727,87357.0,87349.0,1.36498651]
[1769366564301,0.36936627,87359.0,87349.0,1.36498651]
[1769366564302,0.30068415,87359.0,87349.0,0.30048371]
[1769366564560,0.31213116,87359.0,87349.0,0.30048371]
[1769366564767,0.30068415,87359.0,87349.0,0.30048371]
[1769366565995,0.01144714,87358.0,87349.0,0.30048371]
[1769366566201,0.36936684,87359.0,87349.0,0.30048371]
[1769366566202,0.30068415,87359.0,87350.0,1.0645028]
[1769366566412,0.30068415,87359.0,87350.0,1.02809767]
[1769366566618,0.30068415,87359.0,87349.0,0.30048371]
[1769366566619,0.01144714,87358.0,87349.0,0.30048371]
[1769366566840,0.31213116,87359.0,87349.0,0.30048371]
[1769366567056,0.01144714,87358.0,87349.0,0.30048371]
[1769366567729,0.37609991,87370.0,87349.0,0.30048371]
[1769366567875,0.01144701,87359.0,87349.0,0.30048371]
[1769366568477,0.01144727,87357.0,87349.0,0.30048371]
[1769366568661,0.01144741,87356.0,87349.0,0.30048371]
[1769366568863,0.06868558,87356.0,87349.0,0.30048371]
[1769366569067,0.01144754,87355.0,87349.0,0.30048371]
[1769366569262,0.0114478,87353.0,87345.0,1.0645028]
[1769366569468,0.01144754,87355.0,87339.0,1.0645028]
[1769366569735,0.0114478,87353.0,87343.0,1.19247647]
[1769366570153,0.01144793,87352.0,87343.0,1.19247647]
[1769366570359,0.01144767,87354.0,87343.0,1.19247647]
[1769366570557,0.0114478,87353.0,87343.0,1.19247647]
[1769366570754,0.01144714,87358.0,87343.0,1.19247647]
[1769366570958,0.01144741,87356.0,87343.0,1.19247647]
[1769366571155,0.37585201,87360.0,87343.0,0.48577745]
[1769366571386,0.43308646,87360.0,87344.0,1.0645028]
[1769366571568,0.01144714,87358.0,87344.0,0.35780378]
[1769366572005,0.01144727,87357.0,87345.0,1.0645028]
[1769366572148,0.01144741,87356.0,87345.0,1.0645028]
[1769366572357,0.01144714,87358.0,87345.0,1.0645028]
[1769366572754,0.01144727,87357.0,87345.0,1.0645028]
[1769366572957,0.01144714,87358.0,87345.0,1.0645028]
[1769366573152,0.01144727,87357.0,87345.0,1.0645028]
[1769366573355,0.01144741,87356.0,87345.0,1.0645028]
[1769366573679,0.37585201,87360.0,87344.0,0.35780378]
[1769366573680,0.37585201,87360.0,87346.0,0.12797367]
[1769366573885,0.18732662,87362.0,87347.0,1.0645028]
[1769366574087,0.11455951,87360.0,87348.0,0.35780378]
[1769366574287,0.17588,87362.0,87349.0,1.25620414]
[1769366574492,0.33665221,87370.0,87350.0,0.35780378]
[1769366574687,0.33665221,87370.0,87353.0,1.0645028]
[1769366574688,0.01144596,87367.0,87353.0,1.0645028]
[1769366574913,0.13491695,87370.0,87356.0,0.30904458]
[1769366575113,0.06867587,87367.0,87357.0,1.00718535]
[1769366575279,0.01144636,87364.0,87357.0,1.00718535]
[1769366575482,0.01144623,87365.0,87357.0,1.00718535]
[1769366575717,0.0114461,87366.0,87357.0,1.00718535]
[1769366576194,5.0,87362.0,87357.0,1.00718535]
[1769366576401,5.0,87362.0,87360.0,0.33026694]
[1769366576618,5.0,87362.0,87361.0,1.0187167]
[1769366577146,5.0,87362.0,87361.0,0.96140057]
[1769366577575,4.97710807,87362.0,87361.0,0.91561447]
[1769366577784,4.97710807,87362.0,87361.0,1.24972458]
[1769366577985,4.97710807,87362.0,87361.0,0.29302036]
[1769366578193,0.01,87361.0,87349.0,0.29493787]
[1769366578404,4.97710807,87362.0,87351.0,1.0645028]
[1769366578612,5.03534171,87362.0,87351.0,1.0645028]
[1769366578825,0.01144688,87360.0,87352.0,1.0645028]
[1769366579210,0.01144701,87359.0,87346.0,0.17588]
[1769366579408,0.01144714,87358.0,87348.0,0.12797367]
[1769366579551,0.01144701,87359.0,87348.0,0.12797367]
[1769366579776,1.1461727,87360.0,87348.0,0.12797367]
[1769366579979,1.09030324,87360.0,87348.0,0.12797367]
[1769366580218,1.08341621,87360.0,87348.0,0.12797367]
[1769366580438,1.08341621,87360.0,87346.0,0.17588]
[1769366580439,1.13921796,87358.0,87346.0,0.17588]
[1769366580578,1.14066551,87358.0,87346.0,0.17588]
[1769366580782,0.36748487,87360.0,87336.0,0.360586]
[1769366580783,0.33640431,87355.0,87336.0,0.360586]
[1769366581001,0.0114478,87353.0,87341.0,0.12797367]
[1769366581200,0.01144793,87352.0,87341.0,0.12797367]
[1769366581397,0.33640431,87354.0,87341.0,0.12797367]
[1769366581853,0.33640431,87354.0,87342.0,1.0645028]
[1769366582136,0.01144727,87357.0,87342.0,1.0645028]
[1769366582347,0.01144727,87357.0,87344.0,1.0645028]
[1769366582585,1.14066551,87358.0,87343.0,0.31531192]
[1769366582981,0.0016012,87343.0,87336.0,0.00014216]
[1769366583305,1.50155071,87348.0,87336.0,0.00014216]
[1769366583454,0.34930208,87345.0,87336.0,0.00014216]
[1769366583680,1.50155071,87343.0,87326.0,0.21560036]
[1769366583884,1.15238428,87343.0,87325.0,1.16060839]
[1769366584088,0.01145213,87320.0,87306.0,0.32592993]
[1769366584434,0.01145213,87320.0,87303.0,1.28882996]
[1769366584435,0.06872391,87306.0,87303.0,0.0002479]
[1769366584755,0.01145396,87306.0,87303.0,0.0002479]
[1769366584947,0.17588,87307.0,87306.0,0.01]
[1769366585355,0.17588,87308.0,87306.0,0.01]
[1769366585836,0.17588,87308.0,87306.0,0.01014211]
[1769366586073,0.17588,87308.0,87303.0,0.0002479]
[1769366586074,0.34930208,87306.0,87303.0,0.0002479]
[1769366586241,0.34930208,87306.0,87281.0,0.17588]
[1769366586242,0.01145501,87298.0,87282.0,0.329572]
[1769366586414,1.13569312,87302.0,87298.0,0.01]
[1769366586582,1.13569312,87300.0,87298.0,0.01]
[1769366586783,1.05106256,87295.0,87282.0,0.0002878]
[1769366586990,0.0458,87298.0,87284.0,1.28858206]
[1769366587195,0.17588,87297.0,87284.0,1.16060839]
[1769366587409,0.17588,87305.0,87289.0,1.16060839]
[1769366587614,0.17588,87305.0,87285.0,0.12797367]
[1769366587615,0.17588,87305.0,87292.0,0.33303849]
[1769366587812,0.17588,87305.0,87295.0,1.16060839]
[1769366588017,0.17588,87305.0,87296.0,1.16060839]
[1769366588299,1.1482788,87318.0,87296.0,1.16060839]
[1769366588300,0.34930208,87328.0,87301.0,1.16060839]
[1769366588451,0.05725871,87323.0,87304.0,0.33256227]
[1769366588660,0.01,87304.0,87301.0,0.00047344]
[1769366588828,0.17592,87309.0,87302.0,1.16060839]
[1769366589032,0.01145304,87313.0,87301.0,0.00047344]
[1769366589324,0.52522208,87312.0,87301.0,0.00047344]
[1769366589903,1.15224863,87319.0,87301.0,0.00047344]
[1769366590208,0.52522208,87318.0,87301.0,0.00047344]
[1769366590610,1.15224863,87317.0,87301.0,0.00047344]
[1769366590956,0.52522208,87318.0,87302.0,1.16060839]
[1769366591181,0.17592,87317.0,87302.0,1.16060839]
[1769366591384,0.05725134,87326.0,87301.0,0.00047344]
[1769366591385,0.17592,87316.0,87306.0,1.16060839]
[1769366591740,0.52522208,87327.0,87316.0,0.01]
[1769366591884,0.17592,87327.0,87310.0,0.34177261]
[1769366592087,0.34930208,87326.0,87310.0,0.34177261]
[1769366592588,0.36075342,87326.0,87310.0,0.34177261]
[1769366592813,0.34930208,87326.0,87310.0,0.34177261]
[1769366593141,0.34930208,87326.0,87311.0,1.16060839]
[1769366593545,0.22899547,87338.0,87313.0,1.16060839]
[1769366593546,0.34930208,87338.0,87313.0,1.16060839]
[1769366593764,0.38730282,87330.0,87315.0,0.34177261]
[1769366593936,0.37585201,87330.0,87315.0,0.34177261]
[1769366594134,0.37585201,87330.0,87316.0,0.34177261]
[1769366594336,0.01145055,87332.0,87316.0,1.502381]
[1769366594545,0.34930208,87336.0,87314.0,0.17592]
[1769366594546,1.15224863,87325.0,87314.0,0.17592]
[1769366594706,0.34930208,87324.0,87314.0,0.17592]
[1769366594939,0.36075368,87324.0,87314.0,0.17592]
[1769366595128,0.01145186,87322.0,87308.0,0.34177261]
[1769366595525,0.30093506,87320.0,87308.0,0.34177261]
[1769366595727,0.30093506,87320.0,87309.0,1.10058965]
[1769366596663,0.34607938,87319.0,87305.0,1.10058965]
[1769366596862,0.34607938,87319.0,87304.0,0.17596]
[1769366597244,0.34607938,87319.0,87305.0,1.10058965]
[1769366598233,0.34607938,87338.0,87320.0,1.10058965]
[1769366598438,0.30093506,87330.0,87321.0,1.10058965]
[1769366599686,0.30093506,87330.0,87305.0,0.12797367]
[1769366599687,0.31238587,87330.0,87305.0,0.12797367]
[1769366600024,0.31238587,87330.0,87308.0,1.10058965]
[1769366600312,0.31238587,87330.0,87313.0,0.35578422]
[1769366600457,0.31238587,87330.0,87314.0,1.10058965]
[1769366600665,0.30093506,87330.0,87314.0,1.10058965]
[1769366600865,0.30093506,87324.0,87314.0,1.10058965]
[1769366601275,0.08548569,87324.0,87314.0,1.10058965]
[1769366601469,0.01145134,87326.0,87314.0,1.10058965]
[1769366601684,0.01145121,87327.0,87314.0,1.10058965]
[1769366601885,0.01145134,87326.0,87314.0,1.10058965]
[1769366602132,0.01145121,87327.0,87314.0,1.10058965]
[1769366602713,0.01145094,87329.0,87314.0,1.10058965]
[1769366603530,0.34607938,87330.0,87314.0,1.10058965]
[1769366603749,0.34607938,87330.0,87313.0,0.35578422]
[1769366603923,0.34607938,87326.0,87305.0,0.12797367]
[1769366604123,1.16200326,87323.0,87305.0,0.12797367]
[1769366604347,0.37609644,87330.0,87304.0,0.17596]
[1769366604348,0.34607938,87320.0,87304.0,0.17596]
[1769366604549,0.0114537,87308.0,87301.0,0.00047344]
[1769366604749,1.16200326,87303.0,87301.0,0.00047344]
[1769366604943,1.16200326,87303.0,87294.0,0.17596]
[1769366605151,0.00808194,87294.0,87278.0,0.36135298]
[1769366605553,1.46126088,87296.0,87278.0,0.36135298]
[1769366606156,0.00047412,87303.0,87278.0,0.36135298]
[1769366606493,0.00047412,87303.0,87283.0,1.10058965]
[1769366606494,0.01145475,87300.0,87283.0,1.10058965]
[1769366606630,0.34607938,87296.0,87282.0,0.0002878]
[1769366606972,0.34607938,87294.0,87282.0,0.0002878]
[1769366607195,0.34607938,87294.0,87268.0,0.12797367]
[1769366607335,0.00779414,87274.0,87269.0,0.12797367]
[1769366607536,0.00779414,87274.0,87270.0,1.10058965]
[1769366607737,1.11489657,87284.0,87269.0,0.12797367]
[1769366607964,0.34607938,87284.0,87269.0,0.12797367]
[1769366608170,0.34607938,87285.0,87269.0,0.12797367]
[1769366608341,0.34607938,87283.0,87269.0,1.22856332]
[1769366608718,0.00047412,87283.0,87269.0,1.22856332]
[1769366609031,0.00047412,87283.0,87269.0,0.12797367]
[1769366609673,0.00047412,87283.0,87271.0,0.36135298]
[1769366609881,0.00047412,87283.0,87273.0,1.46194263]
[1769366610094,0.00047412,87283.0,87273.0,0.36135298]
[1769366610656,0.00047412,87283.0,87270.0,1.10058965]
[1769366610849,0.00047412,87283.0,87269.0,0.12797367]
[1769366611092,0.34607938,87281.0,87269.0,0.12797367]
[1769366611277,0.00047412,87283.0,87272.0,0.01145842]
[1769366611474,0.00047412,87283.0,87274.0,1.10058965]
[1769366611989,0.34607938,87304.0,87283.0,0.00047412]
[1769366612191,1.22943588,87303.0,87284.0,1.22856332]
[1769366612373,1.11536595,87301.0,87284.0,0.12797367]
[1769366612574,1.22949656,87300.0,87284.0,0.12797367]
[1769366612780,1.11536595,87300.0,87284.0,0.12797367]
[1769366613167,0.11418473,87299.0,87265.0,0.01173084]
[1769366613365,1.1135989,87284.0,87265.0,0.0002715]
[1769366613606,0.36125791,87283.0,87265.0,0.0002715]
[1769366613922,1.10551696,87278.0,87265.0,0.0002715]
[1769366614120,1.10551696,87277.0,87265.0,0.0002715]
[1769366614300,1.46677487,87277.0,87265.0,0.0002715]
[1769366614624,0.36125791,87298.0,87277.0,0.00191805]
[1769366614834,0.36125791,87291.0,87275.0,0.12797367]
[1769366615239,0.84665126,87288.0,87275.0,0.12797367]
[1769366615446,0.36125791,87286.0,87275.0,0.12797367]
[1769366615784,0.36125791,87285.0,87275.0,0.12797367]
[1769366615983,0.36125791,87295.0,87275.0,0.12797367]
[1769366616184,0.176,87297.0,87275.0,0.12797367]
[1769366616400,0.36125791,87294.0,87275.0,0.12797367]
[1769366616616,0.36125791,87290.0,87275.0,0.12797367]
[1769366616822,0.36125791,87288.0,87275.0,0.1394317]
[1769366616982,0.84665126,87288.0,87268.0,0.12797367]
[1769366617183,0.84665126,87287.0,87270.0,0.01145869]
[1769366617433,0.84665126,87283.0,87268.0,0.12797367]
[1769366617639,0.36125791,87280.0,87268.0,0.12797367]
[1769366617837,0.36125791,87278.0,87268.0,0.12797367]
[1769366618410,0.84665126,87294.0,87268.0,0.12797367]
[1769366618632,0.36125791,87290.0,87268.0,0.12797367]
[1769366618968,4.97710807,87280.0,87268.0,0.12797367]
[1769366619677,4.97710807,87280.0,87272.0,0.01145842]
[1769366619829,1.7874978,87280.0,87278.0,0.35631069]
[1769366620268,0.19786598,87280.0,87279.0,0.05728754]
[1769366620470,0.19786598,87280.0,87269.0,0.12797367]
[1769366620802,0.19786598,87280.0,87277.0,0.36776846]
[1769366621953,0.19786598,87280.0,87277.0,0.35631069]
[1769366622595,0.19786598,87280.0,87277.0,0.36776846]
[1769366622917,0.00013565,87299.0,87285.0,0.36776741]
[1769366623058,0.00013565,87299.0,87290.0,0.48428436]
[1769366623717,1.16680231,87299.0,87290.0,0.11797367]
[1769366624296,1.16680231,87299.0,87283.0,0.12797367]
[1769366624488,1.16666666,87298.0,87283.0,0.12797367]
[1769366625319,0.36125791,87297.0,87269.0,0.40215069]
[1769366625468,1.16666666,87294.0,87270.0,0.12797367]
[1769366625674,1.16666666,87290.0,87270.0,0.12797367]
[1769366625880,0.36125791,87287.0,87269.0,0.04584]
[1769366626118,1.16666666,87284.0,87269.0,0.04584]
[1769366626526,1.16666666,87284.0,87270.0,0.12797367]
[1769366627700,1.16666666,87291.0,87271.0,0.35631069]
[1769366627881,1.16666666,87291.0,87270.0,0.12797367]
[1769366628069,1.16666666,87291.0,87271.0,0.35631069]
[1769366628487,0.00013565,87299.0,87271.0,0.35631069]
[1769366628692,1.16666666,87298.0,87274.0,0.35631069]
[1769366629530,1.16666666,87298.0,87274.0,0.36776885]
[1769366629737,1.16666666,87298.0,87274.0,0.35631069]
[1769366629949,1.16666666,87297.0,87274.0,0.36776885]
[1769366630150,1.16666666,87297.0,87275.0,0.35631069]
[1769366630560,1.16666666,87297.0,87276.0,0.0114579]
[1769366630757,1.16666666,87297.0,87275.0,0.35631069]
[1769366631663,1.16666666,87297.0,87276.0,0.35631069]
[1769366632287,1.16666666,87296.0,87276.0,0.35631069]
[1769366634313,1.16666666,87294.0,87276.0,0.35631069]
[1769366638165,0.00013565,87299.0,87276.0,0.35631069]
[1769366638398,9.0,87294.0,87284.0,0.48428436]
[1769366640011,9.0,87294.0,87284.0,0.12797367]
[1769366641522,8.77972112,87294.0,87284.0,0.12797367]
[1769366641963,8.76972112,87294.0,87285.0,0.35631069]
[1769366642218,8.76972112,87294.0,87286.0,0.04584]
[1769366642412,0.00013565,87299.0,87291.0,0.12797367]
[1769366642635,0.0004025,87294.0,87291.0,0.12797367]
[1769366642848,0.0004025,87294.0,87286.0,0.21406312]
[1769366643618,0.0004025,87294.0,87292.0,0.1552973]
[1769366644028,0.0002795,87298.0,87296.0,0.1552973]
[1769366644238,0.00013565,87299.0,87298.0,0.36807679]
[1769366644239,1e-08,87299.0,87298.0,0.36807679]
[1769366644866,1.16594617,87329.0,87303.0,0.01145436]
[1769366645078,0.00029684,87329.0,87303.0,0.176]
[1769366645282,0.00029684,87329.0,87312.0,0.31080171]
[1769366645487,1.1664265,87326.0,87299.0,0.30180439]
[1769366645692,0.01,87312.0,87301.0,0.01145462]
[1769366645904,0.01,87312.0,87303.0,0.47780439]
[1769366646547,0.01,87312.0,87305.0,0.12797367]
[1769366647176,1.1664265,87321.0,87305.0,0.12797367]
[1769366647584,1.1664265,87321.0,87305.0,0.42528066]
[1769366649781,1.1656265,87321.0,87305.0,0.42528066]
[1769366651615,0.41152891,87322.0,87305.0,0.42528066]
[1769366651836,1.57768874,87322.0,87305.0,0.42528066]
[1769366652037,1.16615983,87321.0,87305.0,0.42528066]
[1769366652278,1.16615983,87320.0,87305.0,0.42528066]
[1769366652651,0.5,87319.0,87303.0,0.176]
[1769366652858,0.5,87315.0,87303.0,0.176]
[1769366653064,1.16615983,87311.0,87286.0,0.06312392]
[1769366653265,1.16615983,87307.0,87286.0,0.06312392]
[1769366653496,0.5,87304.0,87280.0,0.01145737]
[1769366653702,0.5,87300.0,87279.0,0.00152049]
[1769366653879,1.16615983,87297.0,87279.0,0.01297799]
[1769366654074,0.5,87297.0,87279.0,0.01297799]
[1769366654276,1.66615983,87297.0,87282.0,0.01145711]
[1769366654484,0.5,87297.0,87285.0,0.00152049]
[1769366654688,0.5,87282.0,87259.0,0.01146013]
[1769366654885,1.16615983,87279.0,87264.0,0.00075472]
[1769366655122,0.5,87279.0,87264.0,0.00075472]
[1769366655485,0.5,87277.0,87264.0,0.00075472]
[1769366655859,0.17596,87286.0,87264.0,0.00075472]
[1769366655860,1.66615983,87276.0,87264.0,0.00075472]
[1769366656072,1.16615983,87275.0,87264.0,0.00075472]
[1769366656908,1.16615983,87273.0,87264.0,0.00075472]
[1769366657325,0.5,87284.0,87264.0,0.00075472]
[1769366657531,1.66615983,87282.0,87267.0,0.01145908]
[1769366657710,1.16615983,87281.0,87268.0,0.01145895]
[1769366657938,0.5,87282.0,87272.0,0.01145842]
[1769366658140,0.17596,87282.0,87270.0,0.00152049]
[1769366658487,0.17596,87282.0,87271.0,0.01145856]
[1769366658748,0.17596,87282.0,87270.0,0.01145869]
[1769366658902,0.17596,87282.0,87271.0,0.01145856]
[1769366659497,0.17596,87282.0,87270.0,0.01145869]
[1769366659701,1.16615983,87286.0,87270.0,0.01145869]
[1769366659911,0.5,87286.0,87270.0,0.01145869]
[1769366660086,1.16615983,87285.0,87270.0,0.01145869]
[1769366660519,1.66615983,87285.0,87269.0,0.01145882]
[1769366660729,1.66615983,87285.0,87271.0,0.01145856]
[1769366660942,0.5,87294.0,87274.0,0.00152049]
[1769366661148,0.5,87294.0,87276.0,0.00152049]
[1769366661149,0.67596,87294.0,87276.0,0.00152049]
[1769366661362,0.5,87292.0,87274.0,0.01145816]
[1769366661563,1.66615983,87291.0,87274.0,0.01145816]
[1769366661784,1.16615983,87290.0,87273.0,0.01145829]
[1769366661994,0.5,87289.0,87269.0,0.01297931]
[1769366662251,1.16615983,87288.0,87271.0,0.01145856]
[1769366662446,0.98469896,87288.0,87272.0,0.02045165]
[1769366662858,0.98469896,87288.0,87272.0,0.00899323]
[1769366663103,0.98469896,87288.0,87270.0,0.00899323]
[1769366663512,0.98469896,87288.0,87270.0,0.02045192]
[1769366663720,0.98469896,87288.0,87271.0,0.01145856]
[1769366663965,1.11010077,87287.0,87272.0,0.00899302]
[1769366664158,0.47590857,87290.0,87267.0,0.01145908]
[1769366664159,0.5,87282.0,87267.0,0.01145908]
[1769366664375,0.176,87289.0,87268.0,0.20343289]
[1769366664544,0.5,87287.0,87268.0,0.19197394]
[1769366664779,0.5,87285.0,87269.0,0.01145882]
[1769366664959,0.176,87290.0,87275.0,0.01145803]
[1769366665195,1.11010077,87291.0,87275.0,0.0204661]
[1769366665396,1.11010077,87291.0,87275.0,0.00900807]
[1769366665601,1.11010077,87291.0,87273.0,0.18198981]
[1769366665805,0.5,87291.0,87275.0,0.01145803]
[1769366666007,0.5,87291.0,87277.0,0.01145777]
[1769366666213,1.11010077,87290.0,87274.0,0.01145816]
[1769366666417,1.11010077,87290.0,87273.0,0.1934481]
[1769366666591,1.11010077,87289.0,87274.0,0.00171125]
[1769366667059,1.11010077,87289.0,87273.0,0.19516012]
[1769366667488,1.11010077,87289.0,87273.0,0.00171202]
[1769366667697,1.61010077,87289.0,87271.0,0.00171202]
[1769366667878,1.61010077,87289.0,87272.0,0.01145842]
[1769366668115,1.61010077,87289.0,87273.0,0.00171198]
[1769366668529,1.61010077,87289.0,87273.0,0.01317027]
[1769366668735,1.11010077,87288.0,87273.0,0.00171198]
[1769366669834,1.11010077,87288.0,87272.0,0.0131704]
[1769366670055,1.11010077,87288.0,87272.0,0.2524523]
[1769366670291,1.11010077,87288.0,87274.0,0.01145816]
[1769366670495,1.11010077,87273.0,87261.0,0.01145987]
[1769366670715,0.01,87274.0,87258.0,0.05730095]
[1769366670716,1.61010077,87272.0,87259.0,0.01146013]
[1769366670926,1.11010077,87271.0,87254.0,0.01146079]
[1769366671134,1.11010077,87271.0,87255.0,0.01146066]
[1769366671345,1.61010077,87271.0,87255.0,0.01146066]
[1769366671519,1.61010077,87271.0,87254.0,0.01146079]
[1769366671520,1.61010077,87271.0,87256.0,0.01146052]
[1769366671768,1.61010077,87271.0,87257.0,0.01146039]
[1769366671981,1.61010077,87271.0,87258.0,0.01146026]
[1769366672188,1.61010077,87271.0,87257.0,0.01146039]
[1769366672609,1.11010077,87270.0,87257.0,0.01146039]
[1769366672767,1.11057489,87270.0,87228.0,0.03012079]
[1769366672981,1.11010077,87255.0,87250.0,0.01146131]
[1769366673150,1.11010077,87255.0,87252.0,0.01146105]
[1769366673350,0.00047412,87270.0,87253.0,0.01146092]
[1769366673351,1.09454274,87267.0,87253.0,0.01146092]
[1769366673550,1.09454274,87267.0,87254.0,0.01146079]
[1769366673809,1.09454274,87267.0,87245.0,0.22923736]
[1769366674009,0.5,87265.0,87257.0,0.01146039]
[1769366674225,1.59454274,87265.0,87256.0,0.01146052]
[1769366674432,1.59454274,87265.0,87258.0,0.01146026]
[1769366674648,1.59211136,87265.0,87258.0,0.01146026]
[1769366674851,1.09454274,87264.0,87259.0,0.01146013]
[1769366675088,1.09454274,87262.0,87259.0,0.01146013]
[1769366675538,1.09454274,87262.0,87256.0,0.01146052]
[1769366675762,1.09072265,87266.0,87259.0,0.01146013]
[1769366676201,0.176,87269.0,87259.0,0.01146013]
[1769366676202,0.5,87265.0,87261.0,0.01145987]
[1769366676412,1.09072265,87264.0,87259.0,0.01146013]
[1769366676668,0.01,87261.0,87237.0,0.0004352]
[1769366676898,0.01,87261.0,87210.0,0.47639471]
[1769366676899,0.84047988,87230.0,87168.0,0.00011]
[1769366677123,1.0888121,87114.0,87096.0,0.01133153]
[1769366677357,0.84036989,87115.0,87000.0,31.36498702]
[1769366677358,0.84047988,87090.0,87000.0,31.36498702]
[1769366677569,1.51273003,87051.0,87050.0,13.75755469]
[1769366677792,0.78372163,87042.0,87040.0,0.01148897]
[1769366678010,0.78372163,87042.0,87000.0,24.83473772]
[1769366678011,0.45168614,87014.0,87007.0,0.05746664]
[1769366678242,0.27510474,87015.0,87000.0,23.20936296]
[1769366678446,0.06687119,87006.0,87000.0,18.02485355]
[1769366678662,0.45168614,87005.0,87000.0,15.92217624]
[1769366678875,0.45168614,87005.0,87000.0,11.03355765]
[1769366679089,0.20454926,87015.0,87000.0,11.03355765]
[1769366679090,0.45168614,87003.0,87000.0,5.81096201]
[1769366679309,0.020736,87041.0,87000.0,0.7217446]
[1769366679539,0.1312,86985.0,86980.0,0.01149689]
[1769366679758,0.44168614,86986.0,86985.0,0.00814612]
[1769366679977,0.01149121,87023.0,86985.0,0.00814612]
[1769366679978,0.1207,87008.0,86985.0,0.23057791]
[1769366680211,0.45168614,87028.0,86985.0,0.00861791]
[1769366680212,0.1207,87006.0,86985.0,0.00861791]
[1769366680468,0.06545553,87054.0,86985.0,0.00861791]
[1769366680690,0.0114891,87039.0,87010.0,0.53949396]
[1769366680924,0.0114887,87042.0,87010.0,0.53949396]
[1769366681156,0.01149161,87020.0,86985.0,0.00861791]
[1769366681370,0.13558145,87044.0,86985.0,0.00861791]
[1769366681371,0.13558145,87064.0,87010.0,0.47913001]
[1769366681584,0.06545553,87060.0,87000.0,1.43739003]
[1769366681793,0.05744987,87033.0,87000.0,1.43739003]
[1769366682049,0.01148883,87041.0,87010.0,0.47913001]
[1769366682276,0.01149187,87018.0,87001.0,0.22208]
[1769366682505,0.05744903,87034.0,86969.0,0.46608669]
[1769366682757,0.05744903,87034.0,86950.0,0.95826002]
[1769366682758,0.45168614,87063.0,87001.0,0.27510474]
[1769366683014,0.01148619,87061.0,87031.0,0.27510474]
[1769366683231,0.45168614,87114.0,87041.0,1.16345859]
[1769366683453,0.47913001,87110.0,87050.0,0.47913001]
[1769366683675,0.45168614,87114.0,87042.0,0.45458835]
[1769366683676,0.01148606,87062.0,87051.0,0.17624]
[1769366683886,0.01148461,87073.0,87057.0,0.27510474]
[1769366684126,0.01148277,87087.0,87072.0,0.27277347]
[1769366684362,0.01148039,87105.0,87086.0,0.27510474]
[1769366684597,0.01148118,87099.0,87086.0,0.27510474]
[1769366684817,0.01148052,87104.0,87086.0,0.27510474]
[1769366685048,0.47913001,87120.0,87050.0,0.27510474]
[1769366685049,0.01148514,87069.0,87050.0,0.27510474]
[1769366685296,0.84047988,87127.0,87069.0,0.25719042]
[1769366685297,1.0888121,87096.0,87069.0,0.25719042]
[1769366685533,0.0001762,87104.0,87051.0,0.02751047]
[1769366685534,0.22967743,87079.0,87051.0,0.02751047]
[1769366685763,0.22967743,87079.0,87037.0,1.16345859]
[1769366685764,0.05744327,87043.0,87041.0,0.002]
[1769366685988,0.00014205,87043.0,87042.0,0.25719042]
[1769366686240,0.01149002,87032.0,87025.0,0.17628]
[1769366686473,0.05745211,87029.0,86994.0,0.25719042]
[1769366686745,0.05745211,87029.0,87017.0,0.25743724]
[1769366686746,0.01149095,87025.0,87017.0,0.25743724]
[1769366686954,0.00047403,87029.0,87000.0,0.25743724]
[1769366686955,0.01149187,87018.0,87008.0,0.17632]
[1769366687204,0.01149398,87002.0,86996.0,0.04592]
[1769366687421,0.01185388,87017.0,86979.0,0.05748518]
[1769366687422,0.01149663,86982.0,86979.0,0.05748518]
[1769366687644,0.000598,87008.0,86987.0,0.21146118]
[1769366687870,0.37813014,87000.0,86965.0,0.25743724]
[1769366688109,0.000598,87008.0,86966.0,0.25743724]
[1769366688323,0.22987349,87005.0,86987.0,0.25743724]